fUST/lending_fUST_20240613
["ID","MTS","AMOUNT","RATE_DAILY","PERIOD"]
[329326338,1718245857427,-675.68,0.00018356,2]
[329326339,1718245857448,-500.0,0.00018356,2]
[329326340,1718245857459,-500.0,0.00018356,2]
[329326341,1718245857471,-652.96,0.00018356,2]
[329326342,1718245857490,-692.56,0.00018356,2]
[329326343,1718245857502,-500.0,0.00018356,2]
[329326344,1718245857513,-972.43,0.00018356,2]
[329326345,1718245857524,-694.9,0.00018356,2]
[329326346,1718245857538,-926.69,0.00018356,2]
[329326347,1718245857549,-500.0,0.00018356,2]
[329326348,1718245857560,-500.0,0.00018356,2]
[329326349,1718245857574,-2179.23,0.00018356,2]
[329326350,1718245857584,-500.0,0.00018356,2]
[329326351,1718245857595,-527.75396569,0.00018356,2]
[329326352,1718245857607,-1718.39,0.00018356,2]
[329326353,1718245857618,-822.56,0.00018356,2]
[329326354,1718245857628,-500.0,0.00018356,2]
[329326355,1718245857640,-1160.61,0.00018356,2]
[329326356,1718245857651,-981.58,0.00018356,2]
[329326357,1718245857663,-500.0,0.00018356,2]
[329326358,1718245857673,-1548.65,0.00018356,2]
[329326359,1718245857686,-2473.47,0.00018356,2]
[329326360,1718245857699,-628.25,0.00018356,2]
[329326361,1718245857710,-2886.59,0.00018356,2]
[329326362,1718245857722,-500.0,0.00018356,2]
[329326363,1718245857733,-500.0,0.00018356,2]
[329326364,1718245857744,-500.0,0.00018356,2]
[329326365,1718245857757,-7479.87,0.00018356,2]
[329326366,1718245857769,-500.0,0.00018356,2]
[329326367,1718245857780,-908.59,0.00018356,2]
[329326368,1718245857792,-5026.05,0.00018356,2]
[329326369,1718245857803,-839.14,0.00018356,2]
[329326370,1718245857814,-500.0,0.00018356,2]
[329326371,1718245857826,-500.0,0.00018356,2]
[329326372,1718245857847,-6873.16,0.00018356,2]
[329326373,1718245857860,-1965.0,0.00018356,2]
[329326374,1718245857871,-1901.3,0.00018356,2]
[329326375,1718245857882,-919.86,0.00018356,2]
[329326376,1718245857892,-824.95,0.00018356,2]
[329326377,1718245857904,-500.0,0.00018356,2]
[329326378,1718245857914,-3378.5,0.00018356,2]
[329326379,1718245857924,-597.49,0.00018356,2]
[329326380,1718245857935,-692.8,0.00018408,2]
[329326381,1718245857945,-623.29995096,0.00018496,2]
[329326382,1718245857956,-306.0,0.00018548,2]
[329326383,1718245857966,-166.666666,0.00018575,2]
[329326384,1718245857976,-692.8,0.00018607,2]
[329326385,1718245857987,-500.0,0.00018629,2]
[329326386,1718245857997,-739.29,0.0001863,2]
[329326387,1718245858007,-675.68,0.0001863,2]
[329326388,1718245858019,-500.0,0.0001863,2]
[329326389,1718245858030,-548.48291824,0.0001863,2]
[329326390,1718245858041,-652.96,0.0001863,2]
[329326391,1718245858052,-692.56,0.0001863,2]
[329326392,1718245858064,-151.0,0.0001863,2]
[329326393,1718245858074,-500.0,0.0001863,2]
[329326394,1718245858115,-972.43,0.0001863,2]
[329326395,1718245858131,-694.9,0.0001863,2]
[329326396,1718245858142,-926.69,0.0001863,2]
[329326397,1718245858160,-151.0,0.0001863,2]
[329326398,1718245858182,-151.0,0.0001863,2]
[329326399,1718245858195,-151.0,0.0001863,2]
[329326400,1718245858209,-500.0,0.0001863,2]
[329326401,1718245858221,-151.0,0.0001863,2]
[329326402,1718245858232,-500.0,0.0001863,2]
[329326403,1718245858243,-2179.23,0.0001863,2]
[329326404,1718245858259,-500.0,0.0001863,2]
[329326405,1718245858273,-1718.39,0.0001863,2]
[329326406,1718245858286,-822.56,0.0001863,2]
[329326407,1718245858298,-500.0,0.0001863,2]
[329326408,1718245858318,-1160.61,0.0001863,2]
[329326409,1718245858329,-981.58,0.0001863,2]
[329326410,1718245858340,-500.0,0.0001863,2]
[329326411,1718245858351,-1548.65,0.0001863,2]
[329326412,1718245858363,-2473.47,0.0001863,2]
[329326413,1718245858374,-628.25,0.0001863,2]
[329326414,1718245858385,-2886.59,0.0001863,2]
[329326415,1718245858396,-500.0,0.0001863,2]
[329326416,1718245858406,-500.0,0.0001863,2]
[329326417,1718245858418,-500.0,0.0001863,2]
[329326418,1718245858431,-7479.87,0.0001863,2]
[329326419,1718245858445,-500.0,0.0001863,2]
[329326420,1718245858460,-908.59,0.0001863,2]
[329326421,1718245858473,-5026.05,0.0001863,2]
[329326422,1718245858484,-839.14,0.0001863,2]
[329326423,1718245858496,-500.0,0.0001863,2]
[329326424,1718245858510,-500.0,0.0001863,2]
[329326425,1718245858522,-6873.16,0.0001863,2]
[329326426,1718245858535,-1965.0,0.0001863,2]
[329326427,1718245858547,-1901.3,0.0001863,2]
[329326428,1718245858559,-919.86,0.0001863,2]
[329326429,1718245858571,-824.95,0.0001863,2]
[329326430,1718245858582,-500.0,0.0001863,2]
[329326431,1718245858594,-3378.5,0.0001863,2]
[329326432,1718245858605,-597.49,0.0001863,2]
[329326433,1718245858618,-250.0,0.0001863,2]
[329326434,1718245858629,-150.0,0.00018662,2]
[329326435,1718245858639,-1750.0,0.00018662,2]
[329326436,1718245858651,-500.0,0.00018662,2]
[329326437,1718245858664,-587.0,0.00018772,2]
[329326438,1718245858676,-692.8,0.00018806,2]
[329326439,1718245858687,-247.2536749,0.00018877,2]
[329326440,1718245858698,-153.0,0.00018877,2]
[329326441,1718245858711,-153.0,0.00018877,2]
[329326442,1718245858722,-500.0,0.00018888,7]
[329326443,1718245858733,-500.0,0.00018888,7]
[329326444,1718245858746,-500.0,0.00018888,7]
[329326445,1718245858757,-500.0,0.00018888,7]
[329326446,1718245858771,-500.0,0.00018888,7]
[329326447,1718245858782,-500.0,0.00018888,7]
[329326448,1718245858792,-343.0,0.00018888,7]
[329326449,1718245858804,-938.98252434,0.000189,2]
[329326450,1718245858815,-151.0,0.00018903,2]
[329326451,1718245858826,-739.29,0.00018904,2]
[329326452,1718245858837,-675.68,0.00018904,2]
[329326453,1718245858850,-500.0,0.00018904,2]
[329326454,1718245858860,-652.96,0.00018904,2]
[329326455,1718245858873,-692.56,0.00018904,2]
[329326456,1718245858886,-500.0,0.00018904,2]
[329326457,1718245858897,-972.43,0.00018904,2]
[329326458,1718245858909,-694.9,0.00018904,2]
[329326459,1718245858920,-926.69,0.00018904,2]
[329326460,1718245858932,-500.0,0.00018904,2]
[329326461,1718245858943,-500.0,0.00018904,2]
[329326462,1718245858955,-2179.23,0.00018904,2]
[329326463,1718245858967,-500.0,0.00018904,2]
[329326464,1718245858978,-1718.39,0.00018904,2]
[329326465,1718245858988,-822.56,0.00018904,2]
[329326466,1718245858999,-500.0,0.00018904,2]
[329326467,1718245859010,-151.0,0.00018904,2]
[329326468,1718245859023,-1160.61,0.00018904,2]
[329326469,1718245859036,-981.58,0.00018904,2]
[329326470,1718245859047,-500.0,0.00018904,2]
[329326471,1718245859057,-1548.65,0.00018904,2]
[329326472,1718245859066,-151.0,0.00018904,2]
[329326473,1718245859076,-2473.47,0.00018904,2]
[329326474,1718245859086,-628.25,0.00018904,2]
[329326475,1718245859097,-151.0,0.00018904,2]
[329326476,1718245859107,-154.084201,0.00018904,2]
[329326477,1718245859122,-2886.59,0.00018904,2]
[329326478,1718245859134,-500.0,0.00018904,2]
[329326479,1718245859175,-500.0,0.00018904,2]
[329326480,1718245859193,-500.0,0.00018904,2]
[329326481,1718245859216,-151.0,0.00018904,2]
[329326482,1718245859230,-7479.87,0.00018904,2]
[329326483,1718245859244,-334.590273,0.00018904,2]
[329326484,1718245859257,-500.0,0.00018904,2]
[329326485,1718245859269,-334.590273,0.00018904,2]
[329326486,1718245859290,-908.59,0.00018904,2]
[329326487,1718245859307,-5026.05,0.00018904,2]
[329326488,1718245859325,-839.14,0.00018904,2]
[329326489,1718245859346,-500.0,0.00018904,2]
[329326490,1718245859358,-500.0,0.00018904,2]
[329326491,1718245859373,-6873.16,0.00018904,2]
[329326492,1718245859392,-1965.0,0.00018904,2]
[329326493,1718245859403,-400.944242,0.00018904,2]
[329326494,1718245859414,-400.944242,0.00018904,2]
[329326495,1718245859425,-1901.3,0.00018904,2]
[329326496,1718245859442,-919.86,0.00018904,2]
[329326497,1718245859455,-824.95,0.00018904,2]
[329326498,1718245859466,-151.0,0.00018904,2]
[329326499,1718245859477,-500.0,0.00018904,2]
[329326500,1718245859491,-3378.5,0.00018904,2]
[329326501,1718245859516,-597.49,0.00018904,2]
[329326502,1718245859527,-196.510993,0.00018933,2]
[329326503,1718245859540,-170.881692,0.00018933,2]
[329326504,1718245859552,-194.81512,0.00018933,2]
[329326505,1718245859573,-169.424616,0.00018933,2]
[329326506,1718245859583,-5282.5380268,0.00018938,2]
[329326507,1718245859594,-7271.83096458,0.00019,2]
[329326508,1718245859604,-394.24290711,0.00019,2]
[329326509,1718245859617,-692.8,0.00019005,2]
[329326510,1718245859629,-600.0,0.00019092,2]
[329326511,1718245859641,-585.1386242,0.00019117,2]
[329326512,1718245859661,-150.0,0.00019143,2]
[329326513,1718245859675,-52912.81804699,0.00019169,13]
[329326514,1718245859791,-2000.0,0.00019169,2]
[329326515,1718245859803,-500.0,0.00019176,2]
[329326516,1718245859814,-500.0,0.00019178,2]
[329326517,1718245859828,-506.01320517,0.00019178,2]
[329326518,1718245859838,-506.72560947,0.00019178,2]
[329326519,1718245859850,-500.0,0.00019178,2]
[329326520,1718245859862,-605.82654341,0.00019178,2]
[329326521,1718245859872,-398.92541037,0.00019178,2]
[329326522,1718245859883,-501.50798007,0.00019178,2]
[329326523,1718245859894,-500.0,0.00019178,2]
[329326524,1718245859904,-500.0,0.00019178,2]
[329326525,1718245859915,-470.89005152,0.00019178,2]
[329326526,1718245859926,-414.04719595,0.00019178,2]
[329326527,1718245859938,-500.0,0.00019178,2]
[329326528,1718245859951,-500.0,0.00019178,2]
[329326529,1718245859969,-500.0,0.00019178,2]
[329326530,1718245859979,-500.0,0.00019178,2]
[329326531,1718245859991,-500.0,0.00019178,2]
[329326532,1718245860001,-361.00145835,0.00019178,2]
[329326533,1718245860024,-500.0,0.00019178,2]
[329326534,1718245860047,-500.0,0.00019178,2]
[329326535,1718245860064,-500.0,0.00019178,2]
[329326536,1718245860086,-500.0,0.00019178,2]
[329326537,1718245860118,-500.0,0.00019178,2]
[329326538,1718245860142,-500.0,0.00019178,2]
[329326539,1718245860158,-500.0,0.00019178,2]
[329326540,1718245860175,-500.0,0.00019178,2]
[329326541,1718245860189,-500.0,0.00019178,2]
[329326542,1718245860220,-500.0,0.00019178,2]
[329326543,1718245860238,-500.0,0.00019178,2]
[329326544,1718245860255,-500.0,0.00019178,2]
[329326545,1718245860267,-500.0,0.00019178,2]
[329326546,1718245860280,-219.41600414,0.00019178,2]
[329326547,1718245860295,-463.96633461,0.00019178,2]
[329326548,1718245860309,-500.0,0.00019178,2]
[329326549,1718245860323,-500.0,0.00019178,2]
[329326550,1718245860337,-500.0,0.00019178,2]
[329326551,1718245860356,-157.58287669,0.00019178,2]
[329326552,1718245860371,-500.0,0.00019178,2]
[329326553,1718245860396,-500.0,0.00019178,2]
[329326554,1718245860408,-500.0,0.00019178,2]
[329326555,1718245860421,-500.0,0.00019178,2]
[329326556,1718245860433,-500.0,0.00019178,2]
[329326557,1718245860450,-500.0,0.00019178,2]
[329326558,1718245860463,-500.0,0.00019178,2]
[329326559,1718245860488,-500.0,0.00019178,2]
[329326560,1718245860512,-500.0,0.00019178,2]
[329326561,1718245860524,-500.0,0.00019178,2]
[329326562,1718245860556,-500.0,0.00019178,2]
[329326563,1718245860571,-500.0,0.00019178,2]
[329326564,1718245860587,-250.00000001,0.00019178,2]
[329326565,1718245860601,-739.29,0.00019178,2]
[329326566,1718245860628,-675.68,0.00019178,2]
[329326567,1718245860640,-151.0,0.00019178,2]
[329326568,1718245860659,-500.0,0.00019178,2]
[329326569,1718245860670,-1304.422942,0.00019178,2]
[329326570,1718245860681,-1304.422942,0.00019178,2]
[329326571,1718245860691,-652.96,0.00019178,2]
[329326572,1718245860705,-692.56,0.00019178,2]
[329326573,1718245860716,-500.0,0.00019178,2]
[329326574,1718245860731,-972.43,0.00019178,2]
[329326575,1718245860743,-694.9,0.00019178,2]
[329326576,1718245860771,-926.69,0.00019178,2]
[329326577,1718245860784,-151.0,0.00019178,2]
[329326578,1718245860796,-151.0,0.00019178,2]
[329326579,1718245860810,-2000.0,0.00019178,2]
[329326580,1718245860824,-151.0,0.00019178,2]
[329326581,1718245860839,-500.0,0.00019178,2]
[329326582,1718245860850,-151.0,0.00019178,2]
[329326583,1718245860870,-500.0,0.00019178,2]
[329326584,1718245860884,-2179.23,0.00019178,2]
[329326585,1718245860897,-500.0,0.00019178,2]
[329326586,1718245860913,-1718.39,0.00019178,2]
[329326587,1718245860925,-822.56,0.00019178,2]
[329326588,1718245860940,-500.0,0.00019178,2]
[329326589,1718245860953,-1160.61,0.00019178,2]
[329326590,1718245860970,-981.58,0.00019178,2]
[329326591,1718245860985,-500.0,0.00019178,2]
[329326592,1718245860999,-1548.65,0.00019178,2]
[329326593,1718245861012,-2473.47,0.00019178,2]
[329326594,1718245861027,-628.25,0.00019178,2]
[329326595,1718245861038,-2886.59,0.00019178,2]
[329326596,1718245861049,-500.0,0.00019178,2]
[329326597,1718245861059,-500.0,0.00019178,2]
[329326598,1718245861070,-500.0,0.00019178,2]
[329326599,1718245861090,-7479.87,0.00019178,2]
[329326600,1718245861121,-500.0,0.00019178,2]
[329326601,1718245861135,-908.59,0.00019178,2]
[329326602,1718245861146,-5026.05,0.00019178,2]
[329326603,1718245861159,-839.14,0.00019178,2]
[329326604,1718245861170,-500.0,0.00019178,2]
[329326605,1718245861181,-500.0,0.00019178,2]
[329326606,1718245861191,-6873.16,0.00019178,2]
[329326607,1718245861204,-1965.0,0.00019178,2]
[329326608,1718245861215,-1901.3,0.00019178,2]
[329326609,1718245861225,-919.86,0.00019178,2]
[329326610,1718245861235,-824.95,0.00019178,2]
[329326611,1718245861245,-500.0,0.00019178,2]
[329326612,1718245861255,-3378.5,0.00019178,2]
[329326613,1718245861265,-597.49,0.00019178,2]
[329326614,1718245861275,-191.779368,0.00019178,2]
[329326615,1718245861285,-163.499295,0.00019178,2]
[329326616,1718245861296,-207.3826502,0.00019191,2]
[329326617,1718245861306,-153.0,0.00019191,2]
[329326618,1718245861316,-153.0,0.00019191,2]
[329326619,1718245861327,-692.8,0.00019204,2]
[329326620,1718245861337,-600.0,0.00019291,2]
[329326621,1718245861347,-692.8,0.00019403,2]
[329326622,1718245861357,-620.16499755,0.00019421,2]
[329326623,1718245861368,-155.0,0.0001945,2]
[329326624,1718245861379,-500.0,0.0001945,2]
[329326625,1718245861389,-152.732731,0.00019451,2]
[329326626,1718245861400,-151.0,0.00019451,2]
[329326627,1718245861410,-151.0,0.00019451,2]
[329326628,1718245861420,-739.29,0.00019452,2]
[329326629,1718245861432,-675.68,0.00019452,2]
[329326630,1718245861445,-151.66216852,0.00019452,2]
[329326631,1718245861456,-652.96,0.00019452,2]
[329326632,1718245861466,-151.0,0.00019452,2]
[329326633,1718245861475,-692.56,0.00019452,2]
[329326634,1718245861485,-500.0,0.00019452,2]
[329326635,1718245861494,-972.43,0.00019452,2]
[329326636,1718245861503,-694.9,0.00019452,2]
[329326637,1718245861513,-926.69,0.00019452,2]
[329326638,1718245861523,-500.0,0.00019452,2]
[329326639,1718245861533,-500.0,0.00019452,2]
[329326640,1718245861544,-2179.23,0.00019452,2]
[329326641,1718245861555,-393.57185967,0.00019452,2]
[329326642,1718245861564,-1718.39,0.00019452,2]
[329326643,1718245861574,-822.56,0.00019452,2]
[329326644,1718245861584,-551.39078532,0.00019452,2]
[329326645,1718245861595,-151.0,0.00019452,2]
[329326646,1718245861605,-1160.61,0.00019452,2]
[329326647,1718245861615,-981.58,0.00019452,2]
[329326648,1718245861625,-500.0,0.00019452,2]
[329326649,1718245861635,-1548.65,0.00019452,2]
[329326650,1718245861646,-151.0,0.00019452,2]
[329326651,1718245861657,-2473.47,0.00019452,2]
[329326652,1718245861668,-628.25,0.00019452,2]
[329326653,1718245861679,-151.0,0.00019452,2]
[329326654,1718245861691,-2886.59,0.00019452,2]
[329326655,1718245861702,-500.0,0.00019452,2]
[329326656,1718245861712,-500.0,0.00019452,2]
[329326657,1718245861722,-500.0,0.00019452,2]
[329326658,1718245861734,-151.0,0.00019452,2]
[329326659,1718245861745,-7479.87,0.00019452,2]
[329326660,1718245861756,-334.590273,0.00019452,2]
[329326661,1718245861769,-500.0,0.00019452,2]
[329326662,1718245861781,-334.590273,0.00019452,2]
[329326663,1718245861792,-908.59,0.00019452,2]
[329326664,1718245861803,-5026.05,0.00019452,2]
[329326665,1718245861813,-839.14,0.00019452,2]
[329326666,1718245861827,-500.0,0.00019452,2]
[329326667,1718245861840,-500.0,0.00019452,2]
[329326668,1718245861852,-2169.7044997,0.00019452,2]
[329326669,1718245862012,-500.0,0.00016438,2]
[329326670,1718245862024,-1265.29687565,0.00019452,2]
[329326671,1718245862170,-500.0,0.00016438,2]
[329326672,1718245862182,-500.0,0.00016438,2]
[329326673,1718245862197,-571.58451077,0.00019452,2]
[329326674,1718245862276,-500.0,0.00016712,2]
[329326675,1718245862287,-2440.80119727,0.00019452,2]
[329326676,1718245862303,-425.77291661,0.00019452,2]
[329326677,1718245862315,-1965.0,0.00019452,2]
[329326678,1718245862326,-400.944242,0.00019452,2]
[329326679,1718245862336,-400.944242,0.00019452,2]
[329326680,1718245862348,-1901.3,0.00019452,2]
[329326681,1718245862359,-919.86,0.00019452,2]
[329326682,1718245862371,-824.95,0.00019452,2]
[329326683,1718245862382,-151.0,0.00019452,2]
[329326684,1718245862401,-500.0,0.00019452,2]
[329326685,1718245862412,-3266.07399913,0.00019452,2]
[329326686,1718245862434,-112.42600087,0.00019452,2]
[329326687,1718245862450,-597.49,0.00019452,2]
[329326688,1718245862461,-600.0,0.0001949,2]
[329326689,1718245862472,-692.8,0.00019602,2]
[329326690,1718245862487,-629.94854165,0.00019689,2]
[329326691,1718245862514,-500.0,0.00019725,2]
[329326692,1718245862529,-739.29,0.00019726,2]
[329326693,1718245862548,-675.68,0.00019726,2]
[329326694,1718245862568,-652.96,0.00019726,2]
[329326695,1718245862582,-692.56,0.00019726,2]
[329326696,1718245862594,-500.0,0.00019726,2]
[329326697,1718245862607,-502.57545749,0.00019726,2]
[329326698,1718245927873,300.0,0.000265,120]
[329326699,1718245936584,300.0,0.000265,120]
[329326700,1718245944771,300.0,0.000265,120]
[329326701,1718245954350,300.0,0.000265,120]
[329326702,1718245970795,1598.28,0.00021917,30]
[329326703,1718245971093,1598.28,0.00022739,30]
[329326708,1718246251713,867.91400662,0.00016986,15]
[329326709,1718246251761,20138.60180786,0.00016986,15]
[329326710,1718246371548,21031.27655608,0.00016986,15]
[329326712,1718246491493,8830.12163606,0.00016999,15]
[329326713,1718246491531,11298.80015867,0.00016999,15]
[329326714,1718246529937,1500.0,0.00021917,30]
[329326715,1718246530190,1500.0,0.00022739,30]
[329326718,1718246611564,10064.46089737,0.00016986,15]
[329326719,1718246731660,5032.23044868,0.00016986,15]
[329326720,1718246851535,2516.11522434,0.00016986,15]
[329326733,1718246971648,1258.05761217,0.00016712,15]
[329326754,1718247033313,-229.9074756,0.00015206,2]
[329326755,1718247033326,-703.6212855,0.00015206,2]
[329326756,1718247033391,-341.515,0.00015206,2]
[329326757,1718247033478,-2975.6261281,0.00015206,2]
[329326758,1718247033511,-198.335662,0.00015351,2]
[329326759,1718247033523,-523.83480675,0.00016338,2]
[329326760,1718247033535,-300.0,0.00016431,2]
[329326761,1718247033548,-300.0,0.00016431,2]
[329326762,1718247033562,-187.81925843,0.00016436,2]
[329326763,1718247033573,-2774.33184303,0.00016437,2]
[329326764,1718247033584,-500.0,0.00016438,2]
[329326765,1718247033601,-500.0,0.00016438,2]
[329326766,1718247033614,-500.0,0.00016438,2]
[329326767,1718247033628,-500.0,0.00016438,2]
[329326768,1718247033640,-500.0,0.00016438,2]
[329326769,1718247033665,-500.0,0.00016438,2]
[329326770,1718247033683,-500.0,0.00016438,2]
[329326771,1718247033698,-500.0,0.00016438,2]
[329326772,1718247033720,-500.0,0.00016438,2]
[329326773,1718247033740,-500.0,0.00016438,2]
[329326774,1718247033761,-500.0,0.00016438,2]
[329326775,1718247033777,-500.0,0.00016438,2]
[329326776,1718247033796,-263.44360703,0.00016438,2]
[329326777,1718247033819,-236.55639297,0.00016438,2]
[329326778,1718247033835,-500.0,0.00016438,2]
[329326779,1718247033853,-500.0,0.00016438,2]
[329326780,1718247033867,-500.0,0.00016438,2]
[329326781,1718247033895,-504.99409292,0.00016438,2]
[329326782,1718247033913,-633.13,0.00016438,2]
[329326783,1718247033941,-500.0,0.00016438,2]
[329326784,1718247034032,-500.0,0.00016438,2]
[329326785,1718247034050,-500.0,0.00016438,2]
[329326786,1718247034062,-500.0,0.00016438,2]
[329326787,1718247034076,-131.62153211,0.00016438,2]
[329326824,1718247039628,-338.11908651,0.00016438,2]
[329326825,1718247039642,-500.0,0.00016438,2]
[329326826,1718247039672,-500.0,0.00016438,2]
[329326827,1718247039704,-500.0,0.00016438,2]
[329326828,1718247039741,-597.58933364,0.00016438,2]
[329326829,1718247039753,-500.0,0.00016438,2]
[329326830,1718247039766,-500.0,0.00016438,2]
[329326831,1718247039779,-500.0,0.00016438,2]
[329326832,1718247039792,-435.36719157,0.00016438,2]
[329326833,1718247039809,-500.0,0.00016438,2]
[329326834,1718247039820,-500.0,0.00016438,2]
[329326835,1718247039849,-500.0,0.00016438,2]
[329326836,1718247039868,-500.0,0.00016438,2]
[329326837,1718247039890,-500.0,0.00016438,2]
[329326838,1718247039908,-500.0,0.00016438,2]
[329326839,1718247039920,-500.0,0.00016438,2]
[329326840,1718247039943,-500.0,0.00016438,2]
[329326841,1718247039963,-507.76656536,0.00016438,2]
[329326842,1718247040000,-573.83869851,0.00016438,2]
[329326843,1718247040026,-500.0,0.00016438,2]
[329326844,1718247040040,-500.0,0.00016438,2]
[329326845,1718247040054,-376.9731272,0.00016438,2]
[329326846,1718247040066,-500.0,0.00016438,2]
[329326847,1718247040081,-505.53466256,0.00016438,2]
[329326848,1718247040123,-530.71418767,0.00016438,2]
[329326849,1718247040139,-500.0,0.00016438,2]
[329326850,1718247040154,-500.0,0.00016438,2]
[329326851,1718247040171,-500.0,0.00016438,2]
[329326852,1718247040187,-505.21806324,0.00016438,2]
[329326853,1718247040218,-500.0,0.00016438,2]
[329326854,1718247040231,-504.74556713,0.00016438,2]
[329326855,1718247040242,-166.29588103,0.00016438,2]
[329326856,1718247040252,-500.0,0.00016438,2]
[329326857,1718247040275,-500.0,0.00016438,2]
[329326858,1718247040300,-500.0,0.00016438,2]
[329326859,1718247040314,-500.0,0.00016438,2]
[329326860,1718247040325,-500.0,0.00016438,2]
[329326861,1718247040341,-648.30480686,0.00016438,2]
[329326862,1718247040360,-540.60156037,0.00016438,2]
[329326863,1718247040386,-212.34545381,0.00016438,2]
[329326864,1718247040400,-500.0,0.00016438,2]
[329326865,1718247040411,-505.41465183,0.00016438,2]
[329326866,1718247040426,-500.0,0.00016438,2]
[329326867,1718247040447,-500.0,0.00016438,2]
[329326868,1718247040507,-500.0,0.00016438,2]
[329326869,1718247040529,-511.40755556,0.00016438,2]
[329326870,1718247040545,-500.0,0.00016438,2]
[329326871,1718247040572,-506.67034706,0.00016438,2]
[329326872,1718247040589,-507.75476943,0.00016438,2]
[329326873,1718247040602,-502.98283459,0.00016438,2]
[329326874,1718247040616,-735.63,0.00016438,2]
[329326875,1718247040628,-500.0,0.00016438,2]
[329326876,1718247040659,-500.0,0.00016438,2]
[329326877,1718247040712,-382.24333349,0.00016438,2]
[329326878,1718247040734,-500.0,0.00016438,2]
[329326880,1718247040746,-500.0,0.00016438,2]
[329326882,1718247040758,-502.36717346,0.00016438,2]
[329326884,1718247040777,-500.0,0.00016438,2]
[329326885,1718247040793,-500.0,0.00016438,2]
[329326886,1718247040809,-535.76797202,0.00016438,2]
[329326887,1718247040821,-510.36463853,0.00016438,2]
[329326888,1718247040838,-500.0,0.00016438,2]
[329326889,1718247040854,-500.0,0.00016438,2]
[329326890,1718247040870,-500.0,0.00016438,2]
[329326891,1718247040884,-500.0,0.00016438,2]
[329326892,1718247040898,-500.0,0.00016438,2]
[329326893,1718247040915,-2408.04,0.00016438,2]
[329326894,1718247040926,-500.0,0.00016438,2]
[329326895,1718247040943,-500.0,0.00016438,2]
[329326896,1718247040955,-562.11,0.00016438,2]
[329326897,1718247040969,-268.5794634,0.00016438,2]
[329326898,1718247040982,-593.18830651,0.00016438,2]
[329326899,1718247040996,-500.0,0.00016438,2]
[329326900,1718247041011,-500.0,0.00016438,2]
[329326902,1718247041035,-500.0,0.00016438,2]
[329326904,1718247041047,-500.0,0.00016438,2]
[329326906,1718247041067,-562.0738896,0.00016438,2]
[329326908,1718247041083,-500.0,0.00016438,2]
[329326910,1718247041099,-1643.39,0.00016438,2]
[329326913,1718247041138,-500.0,0.00016438,2]
[329326916,1718247041165,-500.0,0.00016438,2]
[329326917,1718247041198,-1284.74,0.00016438,2]
[329326919,1718247041221,-500.0,0.00016438,2]
[329326922,1718247041247,-500.0,0.00016438,2]
[329326924,1718247041271,-500.0,0.00016438,2]
[329326936,1718247041462,-500.0,0.00016438,2]
[329326938,1718247041474,-1340.41,0.00016438,2]
[329326939,1718247041502,-500.0,0.00016438,2]
[329326941,1718247041517,-500.0,0.00016438,2]